[Event "*** MasterClass Titled Tuesday Blitz"]
[Site "Chess.com"]
[Date "2017.09.05"]
[Round "5"]
[White "manubibi"]
[Black "SavelijTartakover"]
[Result "0-1"]
[WhiteElo "2421"]
[BlackElo "2563"]
[TimeControl "180+2"]
[EndTime "14:13:29 PDT"]
[Termination "SavelijTartakover won by resignation"]

1. e4 {[%clk 0:03:01.9]} 1... c5 {[%clk 0:02:59.4]} 2. Nf3 {[%clk 0:03:01.6]}
2... d6 {[%clk 0:03:00.2]} 3. d4 {[%clk 0:03:02.7]} 3... cxd4 {[%clk 0:03:01.2]}
4. Nxd4 {[%clk 0:03:04.6]} 4... Nf6 {[%clk 0:03:02.7]} 5. Nc3 {[%clk 0:03:05.8]}
5... Nc6 {[%clk 0:03:04.2]} 6. Bg5 {[%clk 0:03:06.5]} 6... e6 {[%clk 0:03:03.9]}
7. Qd2 {[%clk 0:03:07.8]} 7... a6 {[%clk 0:03:05]} 8. O-O-O {[%clk 0:03:08.7]}
8... Bd7 {[%clk 0:03:06]} 9. f4 {[%clk 0:03:06.2]} 9... Be7 {[%clk 0:03:05.5]}
10. Be2 {[%clk 0:03:00.2]} 10... h6 {[%clk 0:03:00.8]} 11. Bh4 {[%clk
0:02:58.7]} 11... Nxd4 {[%clk 0:02:53.3]} 12. Qxd4 {[%clk 0:02:58]} 12... Bc6
{[%clk 0:02:54.7]} 13. Bf3 {[%clk 0:02:55.1]} 13... O-O {[%clk 0:02:51.3]} 14.
e5 {[%clk 0:02:04.8]} 14... dxe5 {[%clk 0:02:44.5]} 15. fxe5 {[%clk 0:02:05.8]}
15... Nd5 {[%clk 0:02:43.5]} 16. Bxe7 {[%clk 0:02:02.5]} 16... Nxe7 {[%clk
0:02:36.5]} 17. Qc5 {[%clk 0:01:34.9]} 17... Qc7 {[%clk 0:02:36]} 18. Bxc6
{[%clk 0:01:17.8]} 18... Nxc6 {[%clk 0:02:34]} 19. Rd6 {[%clk 0:01:19.1]} 19...
Rac8 {[%clk 0:02:20.2]} 20. Rhd1 {[%clk 0:01:19.4]} 20... Qe7 {[%clk 0:02:18.9]}
21. Kb1 {[%clk 0:00:31.4]} 21... Qg5 {[%clk 0:02:14.3]} 22. Ne4 {[%clk
0:00:28.8]} 22... Qf4 {[%clk 0:01:47.1]} 23. Ng3 {[%clk 0:00:13.8]} 23... Nxe5
{[%clk 0:01:41]} 24. Qb6 {[%clk 0:00:14.6]} 24... Nc4 {[%clk 0:01:39.3]} 25.
R6d4 {[%clk 0:00:15.3]} 25... Qxg3 {[%clk 0:01:26.7]} 26. Rxc4 {[%clk
0:00:15.6]} 26... Qxg2 {[%clk 0:01:26]} 27. Rxc8 {[%clk 0:00:15.8]} 27... Rxc8
{[%clk 0:01:25.8]} 28. Rd8+ {[%clk 0:00:16.9]} 28... Rxd8 {[%clk 0:01:26.6]} 29.
Qxd8+ {[%clk 0:00:18.8]} 29... Kh7 {[%clk 0:01:27.9]} 30. Qd3+ {[%clk
0:00:18.5]} 30... f5 {[%clk 0:01:28.6]} 31. a4 {[%clk 0:00:19.4]} 31... Qxh2
{[%clk 0:01:28.1]} 32. Qd7 {[%clk 0:00:20.3]} 32... Qh1+ {[%clk 0:01:28.1]} 33.
Ka2 {[%clk 0:00:19.3]} 33... Qd5+ {[%clk 0:01:28.7]} 0-1

[Event "*** MasterClass Titled Tuesday Blitz"]
[Site "Chess.com"]
[Date "2017.09.05"]
[Round "5"]
[White "yurisolo"]
[Black "Aariow"]
[Result "1-0"]
[WhiteElo "2574"]
[BlackElo "2365"]
[TimeControl "180+2"]
[EndTime "14:13:43 PDT"]
[Termination "yurisolo won by resignation"]

1. e4 {[%clk 0:03:00.2]} 1... c5 {[%clk 0:02:57.9]} 2. Nf3 {[%clk 0:03:00.9]}
2... Nc6 {[%clk 0:02:58.6]} 3. Bb5 {[%clk 0:03:00.2]} 3... Qb6 {[%clk
0:02:57.4]} 4. Nc3 {[%clk 0:03:00.2]} 4... e6 {[%clk 0:02:57.3]} 5. Bxc6 {[%clk
0:02:57.7]} 5... bxc6 {[%clk 0:02:57.5]} 6. O-O {[%clk 0:02:55.7]} 6... Ne7
{[%clk 0:02:56.7]} 7. d3 {[%clk 0:02:49.7]} 7... Ng6 {[%clk 0:02:57.8]} 8. e5
{[%clk 0:02:47.1]} 8... Be7 {[%clk 0:02:57.6]} 9. Re1 {[%clk 0:02:46.3]} 9...
O-O {[%clk 0:02:58.3]} 10. b3 {[%clk 0:02:35.1]} 10... f6 {[%clk 0:02:58.5]} 11.
exf6 {[%clk 0:02:22.1]} 11... Bxf6 {[%clk 0:02:58.7]} 12. Bd2 {[%clk 0:02:23.2]}
12... Bd4 {[%clk 0:02:23.2]} 13. Na4 {[%clk 0:02:09.8]} 13... Qc7 {[%clk
0:02:15.3]} 14. c3 {[%clk 0:02:09.2]} 14... Bf6 {[%clk 0:01:23.6]} 15. Nxc5
{[%clk 0:02:09.1]} 15... Nh4 {[%clk 0:01:19.9]} 16. Nxh4 {[%clk 0:02:02]} 16...
Bxh4 {[%clk 0:01:21.8]} 17. g3 {[%clk 0:02:03.8]} 17... Be7 {[%clk 0:01:17.2]}
18. d4 {[%clk 0:01:56.4]} 18... e5 {[%clk 0:00:54.2]} 19. Rxe5 {[%clk
0:01:41.1]} 19... d6 {[%clk 0:00:27.8]} 20. Ne6 {[%clk 0:01:31.1]} 20... Qb7
{[%clk 0:00:21.3]} 21. Re2 {[%clk 0:01:11.1]} 21... Rf5 {[%clk 0:00:20.3]} 22.
Qc2 {[%clk 0:01:07.5]} 22... Bxe6 {[%clk 0:00:20.2]} 23. Rxe6 {[%clk 0:01:06.5]}
23... Raf8 {[%clk 0:00:22.1]} 24. Rae1 {[%clk 0:00:58.1]} 24... Bd8 {[%clk
0:00:13.7]} 25. Bf4 {[%clk 0:00:58.2]} 25... d5 {[%clk 0:00:13]} 26. Re8 {[%clk
0:00:56.8]} 26... Qf7 {[%clk 0:00:13.4]} 27. Rxf8+ {[%clk 0:00:56]} 27... Qxf8
{[%clk 0:00:15.3]} 28. Re5 {[%clk 0:00:54.4]} 28... h5 {[%clk 0:00:16.4]} 1-0

[Event "*** MasterClass Titled Tuesday Blitz"]
[Site "Chess.com"]
[Date "2017.09.05"]
[Round "5"]
[White "Carolina-moon"]
[Black "biostatistician"]
[Result "0-1"]
[WhiteElo "2151"]
[BlackElo "2425"]
[TimeControl "180+2"]
[EndTime "14:13:50 PDT"]
[Termination "biostatistician won by resignation"]

1. e4 {[%clk 0:03:02]} 1... e6 {[%clk 0:03:00]} 2. d4 {[%clk 0:03:01.8]} 2... d5
{[%clk 0:03:01.9]} 3. Nd2 {[%clk 0:03:03.1]} 3... Nc6 {[%clk 0:03:02.6]} 4. Ngf3
{[%clk 0:03:03.3]} 4... Nf6 {[%clk 0:03:04]} 5. e5 {[%clk 0:03:04.2]} 5... Ne4
{[%clk 0:03:05.5]} 6. Bb5 {[%clk 0:02:58.1]} 6... Bd7 {[%clk 0:03:04.9]} 7. Qe2
{[%clk 0:02:51.3]} 7... Nxd2 {[%clk 0:03:02.1]} 8. Bxd2 {[%clk 0:02:51.5]} 8...
Be7 {[%clk 0:03:02.2]} 9. c3 {[%clk 0:02:47.6]} 9... a6 {[%clk 0:03:01.4]} 10.
Bd3 {[%clk 0:02:48.2]} 10... Na7 {[%clk 0:03:00.4]} 11. a4 {[%clk 0:02:45.9]}
11... c5 {[%clk 0:03:00.7]} 12. dxc5 {[%clk 0:02:36.8]} 12... Bxc5 {[%clk
0:03:02.6]} 13. h4 {[%clk 0:02:33]} 13... h6 {[%clk 0:02:51.3]} 14. g4 {[%clk
0:02:26.8]} 14... Nc6 {[%clk 0:02:50.2]} 15. h5 {[%clk 0:02:14.2]} 15... a5
{[%clk 0:02:34]} 16. g5 {[%clk 0:02:11.2]} 16... hxg5 {[%clk 0:02:33.6]} 17.
Bxg5 {[%clk 0:02:11.5]} 17... Qb6 {[%clk 0:02:33.1]} 18. h6 {[%clk 0:02:02.2]}
18... Be7 {[%clk 0:02:30.7]} 19. Bxe7 {[%clk 0:01:47.4]} 19... Nxe7 {[%clk
0:02:32.6]} 20. h7 {[%clk 0:01:33.7]} 20... O-O-O {[%clk 0:02:20.6]} 21. Nd4
{[%clk 0:01:27.6]} 21... Kb8 {[%clk 0:02:14.7]} 22. Ra3 {[%clk 0:01:27.4]} 22...
Nf5 {[%clk 0:02:08.5]} 23. Bxf5 {[%clk 0:01:24.9]} 23... exf5 {[%clk 0:02:09.2]}
24. Rb3 {[%clk 0:01:25.4]} 24... Qc7 {[%clk 0:02:00.4]} 25. Nb5 {[%clk
0:01:21.6]} 25... Bxb5 {[%clk 0:01:56.3]} 26. Qxb5 {[%clk 0:01:17.6]} 26...
Qxe5+ {[%clk 0:01:55.1]} 27. Kf1 {[%clk 0:01:15.5]} 27... Qc7 {[%clk 0:01:53]}
28. Rh4 {[%clk 0:01:08.3]} 28... Rd6 {[%clk 0:01:40.1]} 29. Rd4 {[%clk 0:01:06]}
29... Rxh7 {[%clk 0:01:35.2]} 30. Qd3 {[%clk 0:01:05.3]} 30... Rh1+ {[%clk
0:01:21.3]} 31. Kg2 {[%clk 0:00:54.6]} 31... Rdh6 {[%clk 0:01:12.6]} 32. Rxd5
{[%clk 0:00:43.2]} 32... R6h2+ {[%clk 0:01:08.4]} 33. Kf3 {[%clk 0:00:42.1]}
33... Rh3+ {[%clk 0:01:09.2]} 34. Ke2 {[%clk 0:00:38.9]} 34... Rxd3 {[%clk
0:01:06.4]} 35. Rxd3 {[%clk 0:00:39.8]} 35... Qc4 {[%clk 0:00:58.2]} 0-1

[Event "*** MasterClass Titled Tuesday Blitz"]
[Site "Chess.com"]
[Date "2017.09.05"]
[Round "5"]
[White "ViIIagra"]
[Black "Bryakin_Mikhail"]
[Result "1-0"]
[WhiteElo "2677"]
[BlackElo "2543"]
[TimeControl "180+2"]
[EndTime "14:13:53 PDT"]
[Termination "ViIIagra won by resignation"]

1. e4 {[%clk 0:03:01.9]} 1... c6 {[%clk 0:02:58.1]} 2. d4 {[%clk 0:03:02.4]}
2... d5 {[%clk 0:02:59.1]} 3. e5 {[%clk 0:03:04]} 3... Bf5 {[%clk 0:02:59.7]} 4.
h4 {[%clk 0:03:05.6]} 4... h5 {[%clk 0:02:59.6]} 5. c4 {[%clk 0:03:06.5]} 5...
dxc4 {[%clk 0:02:57.7]} 6. Bxc4 {[%clk 0:03:03.3]} 6... e6 {[%clk 0:02:58.6]} 7.
Nc3 {[%clk 0:03:03.2]} 7... Nd7 {[%clk 0:02:58.5]} 8. Nge2 {[%clk 0:03:04.2]}
8... Ne7 {[%clk 0:02:52.7]} 9. Ng3 {[%clk 0:03:04.7]} 9... Bg6 {[%clk
0:02:51.3]} 10. Be2 {[%clk 0:02:58.7]} 10... Nf5 {[%clk 0:02:38.7]} 11. Nxf5
{[%clk 0:02:50.1]} 11... Bxf5 {[%clk 0:02:38.2]} 12. Bxh5 {[%clk 0:02:48.8]}
12... g6 {[%clk 0:02:06.9]} 13. Bf3 {[%clk 0:02:48.1]} 13... g5 {[%clk
0:01:32.9]} 14. g4 {[%clk 0:02:44.6]} 14... Bg6 {[%clk 0:01:29.5]} 15. Bxg5
{[%clk 0:02:39.2]} 15... Qb6 {[%clk 0:01:23.8]} 16. Qd2 {[%clk 0:02:30.3]} 16...
Bg7 {[%clk 0:01:04.4]} 17. h5 {[%clk 0:02:10.2]} 17... Bh7 {[%clk 0:01:05.2]}
18. a3 {[%clk 0:02:09.6]} 18... c5 {[%clk 0:00:56.1]} 19. Na4 {[%clk 0:02:05.3]}
19... Qb3 {[%clk 0:00:47.3]} 20. Bd1 {[%clk 0:01:58.4]} 20... Qb5 {[%clk
0:00:48.4]} 21. f4 {[%clk 0:01:29.2]} 21... cxd4 {[%clk 0:00:38.8]} 22. Qxd4
{[%clk 0:01:28.3]} 22... Nxe5 {[%clk 0:00:25.6]} 23. fxe5 {[%clk 0:01:26.8]}
23... Bxe5 {[%clk 0:00:25.8]} 24. Qe3 {[%clk 0:01:24.6]} 24... Bc7 {[%clk
0:00:17.1]} 25. Nc3 {[%clk 0:01:22]} 25... Qxb2 {[%clk 0:00:12.9]} 26. Ba4+
{[%clk 0:01:23]} 26... Kf8 {[%clk 0:00:10.6]} 27. Rd1 {[%clk 0:00:58.7]} 27...
Qxa3 {[%clk 0:00:05.3]} 28. Bh6+ {[%clk 0:00:58.3]} 28... Ke7 {[%clk 0:00:04.8]}
29. Nd5+ {[%clk 0:00:59.2]} 1-0

[Event "*** MasterClass Titled Tuesday Blitz"]
[Site "Chess.com"]
[Date "2017.09.05"]
[Round "5"]
[White "Keaton87"]
[Black "3f32"]
[Result "1-0"]
[WhiteElo "2480"]
[BlackElo "2372"]
[TimeControl "180+2"]
[EndTime "14:14:00 PDT"]
[Termination "Keaton87 won by resignation"]

1. e4 {[%clk 0:03:02]} 1... c5 {[%clk 0:02:59.3]} 2. Nf3 {[%clk 0:03:02.5]} 2...
d6 {[%clk 0:02:56.5]} 3. d4 {[%clk 0:03:03.1]} 3... cxd4 {[%clk 0:02:56.2]} 4.
Nxd4 {[%clk 0:03:05]} 4... Nf6 {[%clk 0:02:57.4]} 5. Nc3 {[%clk 0:03:06.5]} 5...
a6 {[%clk 0:02:58.8]} 6. Bg5 {[%clk 0:03:06.8]} 6... Nbd7 {[%clk 0:02:58.8]} 7.
f4 {[%clk 0:03:07.6]} 7... Qc7 {[%clk 0:02:59]} 8. Qe2 {[%clk 0:03:08.5]} 8...
e5 {[%clk 0:02:54.9]} 9. Nf5 {[%clk 0:03:06.4]} 9... h6 {[%clk 0:02:55.1]} 10.
Bxf6 {[%clk 0:03:06.1]} 10... Nxf6 {[%clk 0:02:57]} 11. fxe5 {[%clk 0:02:51.8]}
11... dxe5 {[%clk 0:02:58.9]} 12. O-O-O {[%clk 0:02:52.5]} 12... Be6 {[%clk
0:02:33.7]} 13. g4 {[%clk 0:02:49.7]} 13... Rc8 {[%clk 0:02:26.6]} 14. Bg2
{[%clk 0:02:46.4]} 14... Bc4 {[%clk 0:01:56.4]} 15. Qf3 {[%clk 0:02:24]} 15...
b5 {[%clk 0:01:38.3]} 16. Rd2 {[%clk 0:02:17.7]} 16... Qa5 {[%clk 0:01:29.7]}
17. Nd6+ {[%clk 0:02:05.2]} 17... Bxd6 {[%clk 0:01:29.5]} 18. Rxd6 {[%clk
0:02:07.1]} 18... b4 {[%clk 0:01:29.9]} 19. Nd5 {[%clk 0:01:43.8]} 19... Bxd5
{[%clk 0:01:30.4]} 20. exd5 {[%clk 0:01:42.9]} 20... Qxa2 {[%clk 0:01:30.6]} 21.
Rxf6 {[%clk 0:01:37.7]} 21... gxf6 {[%clk 0:01:08.2]} 22. Qxf6 {[%clk
0:01:38.4]} 22... O-O {[%clk 0:01:06.5]} 23. Qxh6 {[%clk 0:01:32.6]} 23... Qc4
{[%clk 0:00:42]} 24. Qg5+ {[%clk 0:01:28.1]} 24... Kh7 {[%clk 0:00:43.1]} 25.
Qf5+ {[%clk 0:01:26.8]} 25... Kg7 {[%clk 0:00:43.8]} 26. Be4 {[%clk 0:01:20.9]}
26... Rh8 {[%clk 0:00:44.7]} 27. Rf1 {[%clk 0:00:49.1]} 27... Qc7 {[%clk
0:00:39.5]} 28. d6 {[%clk 0:00:45.5]} 28... Qa7 {[%clk 0:00:34.3]} 29. d7 {[%clk
0:00:28.7]} 29... Qe3+ {[%clk 0:00:34.3]} 30. Kb1 {[%clk 0:00:30]} 30... Rcf8
{[%clk 0:00:35]} 31. Qf6+ {[%clk 0:00:30.7]} 31... Kg8 {[%clk 0:00:35.8]} 32.
d8=Q {[%clk 0:00:31.8]} 32... Rxd8 {[%clk 0:00:36.6]} 33. Qxd8+ {[%clk
0:00:33.7]} 33... Kg7 {[%clk 0:00:38]} 1-0

[Event "*** MasterClass Titled Tuesday Blitz"]
[Site "Chess.com"]
[Date "2017.09.05"]
[Round "5"]
[White "blitzcopter"]
[Black "temiksmozg"]
[Result "0-1"]
[WhiteElo "2036"]
[BlackElo "2418"]
[TimeControl "180+2"]
[EndTime "14:14:10 PDT"]
[Termination "temiksmozg won by resignation"]

1. e4 {[%clk 0:03:01.9]} 1... e6 {[%clk 0:02:57.4]} 2. d4 {[%clk 0:03:02.6]}
2... d5 {[%clk 0:02:55.7]} 3. Nd2 {[%clk 0:03:03.8]} 3... Nf6 {[%clk 0:02:54.8]}
4. e5 {[%clk 0:03:03.4]} 4... Nfd7 {[%clk 0:02:53.8]} 5. Bd3 {[%clk 0:03:05]}
5... c5 {[%clk 0:02:55.1]} 6. c3 {[%clk 0:03:06.3]} 6... Nc6 {[%clk 0:02:57]} 7.
Ne2 {[%clk 0:03:06.5]} 7... cxd4 {[%clk 0:02:58.1]} 8. cxd4 {[%clk 0:03:08.4]}
8... f6 {[%clk 0:03:00]} 9. exf6 {[%clk 0:03:06.8]} 9... Qxf6 {[%clk 0:03:01.9]}
10. Nf3 {[%clk 0:03:06.8]} 10... h6 {[%clk 0:03:00.6]} 11. Qc2 {[%clk 0:03:00]}
11... Bb4+ {[%clk 0:02:54.6]} 12. Bd2 {[%clk 0:02:51.6]} 12... O-O {[%clk
0:02:55.5]} 13. a3 {[%clk 0:02:49.4]} 13... Bd6 {[%clk 0:02:54.8]} 14. Be3
{[%clk 0:02:38]} 14... e5 {[%clk 0:02:54.9]} 15. dxe5 {[%clk 0:02:39.9]} 15...
Ndxe5 {[%clk 0:02:55.9]} 16. Nxe5 {[%clk 0:02:38.6]} 16... Bxe5 {[%clk
0:02:53.3]} 17. O-O {[%clk 0:02:07.1]} 17... Bxb2 {[%clk 0:02:41.3]} 18. Rab1
{[%clk 0:01:21.8]} 18... Be5 {[%clk 0:02:32.5]} 19. f4 {[%clk 0:01:06.7]} 19...
Bd6 {[%clk 0:02:28.1]} 20. Ng3 {[%clk 0:00:56.4]} 20... Bxa3 {[%clk 0:01:42.4]}
21. Qb3 {[%clk 0:00:46.2]} 21... Be7 {[%clk 0:01:37.2]} 22. Qxd5+ {[%clk
0:00:35.9]} 22... Be6 {[%clk 0:01:31.5]} 23. Qe4 {[%clk 0:00:34.8]} 23... g6
{[%clk 0:01:24.4]} 24. Rxb7 {[%clk 0:00:25.3]} 24... Bf7 {[%clk 0:01:17.7]} 25.
Nh5 {[%clk 0:00:17.6]} 25... Qe6 {[%clk 0:01:12.9]} 26. Qxe6 {[%clk 0:00:18.5]}
26... Bxe6 {[%clk 0:01:14.8]} 27. Bxg6 {[%clk 0:00:19.4]} 27... Rab8 {[%clk
0:01:08.2]} 28. Rxb8 {[%clk 0:00:19.4]} 28... Rxb8 {[%clk 0:01:10.1]} 29. f5
{[%clk 0:00:20.9]} 29... Bf7 {[%clk 0:01:06.4]} 30. Bxf7+ {[%clk 0:00:19.9]}
30... Kxf7 {[%clk 0:01:08.3]} 31. Bxh6 {[%clk 0:00:21.3]} 31... Rh8 {[%clk
0:01:07.5]} 32. f6 {[%clk 0:00:20.7]} 32... Bc5+ {[%clk 0:01:03.4]} 33. Kh1
{[%clk 0:00:19.1]} 33... Rxh6 {[%clk 0:01:04.6]} 34. Rc1 {[%clk 0:00:20.2]}
34... Rxh5 {[%clk 0:01:05.5]} 35. g4 {[%clk 0:00:21.2]} 35... Rd5 {[%clk
0:01:04.9]} 0-1

[Event "*** MasterClass Titled Tuesday Blitz"]
[Site "Chess.com"]
[Date "2017.09.05"]
[Round "5"]
[White "r31415"]
[Black "Darkbluelord"]
[Result "1-0"]
[WhiteElo "2169"]
[BlackElo "2137"]
[TimeControl "180+2"]
[EndTime "14:14:15 PDT"]
[Termination "r31415 won by checkmate"]

1. e4 {[%clk 0:03:01.9]} 1... c5 {[%clk 0:02:59.2]} 2. Nf3 {[%clk 0:03:02.6]}
2... d6 {[%clk 0:02:59.1]} 3. d4 {[%clk 0:03:04.1]} 3... cxd4 {[%clk 0:02:59.2]}
4. Nxd4 {[%clk 0:03:06]} 4... Nf6 {[%clk 0:02:59.4]} 5. Nc3 {[%clk 0:03:07.7]}
5... g6 {[%clk 0:03:00.1]} 6. h3 {[%clk 0:03:08.6]} 6... Bg7 {[%clk 0:03:01]} 7.
g4 {[%clk 0:03:10.2]} 7... d5 {[%clk 0:02:59.1]} 8. exd5 {[%clk 0:02:58.6]} 8...
Nxd5 {[%clk 0:02:55.1]} 9. Bb5+ {[%clk 0:02:58.7]} 9... Kf8 {[%clk 0:02:05.2]}
10. Nde2 {[%clk 0:02:59.2]} 10... Be6 {[%clk 0:01:41.8]} 11. Nf4 {[%clk
0:02:55.7]} 11... Bxc3+ {[%clk 0:01:09.2]} 12. bxc3 {[%clk 0:02:52.9]} 12... Nc6
{[%clk 0:00:56.4]} 13. Nxe6+ {[%clk 0:02:44.2]} 13... fxe6 {[%clk 0:00:56.6]}
14. Bh6+ {[%clk 0:02:38.1]} 14... Ke8 {[%clk 0:00:51]} 15. Qd4 {[%clk
0:01:51.1]} 15... Rg8 {[%clk 0:00:28.6]} 16. O-O {[%clk 0:01:51.1]} 16... Qa5
{[%clk 0:00:21.3]} 17. a4 {[%clk 0:01:06]} 17... a6 {[%clk 0:00:20.9]} 18. Bxc6+
{[%clk 0:00:43.4]} 18... bxc6 {[%clk 0:00:22.8]} 19. Qe5 {[%clk 0:00:38]} 19...
Qxc3 {[%clk 0:00:19.7]} 20. Qxe6 {[%clk 0:00:37.9]} 20... Nf6 {[%clk 0:00:13.2]}
21. Rfe1 {[%clk 0:00:34.2]} 21... Ra7 {[%clk 0:00:08.1]} 22. Qc8+ {[%clk
0:00:30.8]} 22... Kf7 {[%clk 0:00:08.2]} 23. Qe6+ {[%clk 0:00:32.7]} 23... Ke8
{[%clk 0:00:09.5]} 24. Bg5 {[%clk 0:00:21.8]} 24... Rf8 {[%clk 0:00:09.2]} 25.
Bh6 {[%clk 0:00:18.4]} 25... Qxh3 {[%clk 0:00:03.6]} 26. Qc8+ {[%clk 0:00:17.7]}
26... Kf7 {[%clk 0:00:03.8]} 27. Qxf8# {[%clk 0:00:19.6]} 1-0

[Event "*** MasterClass Titled Tuesday Blitz"]
[Site "Chess.com"]
[Date "2017.09.05"]
[Round "5"]
[White "BilodeauA"]
[Black "joppie2"]
[Result "1-0"]
[WhiteElo "2654"]
[BlackElo "2586"]
[TimeControl "180+2"]
[EndTime "14:14:34 PDT"]
[Termination "BilodeauA won on time"]

1. e4 {[%clk 0:03:01.7]} 1... e5 {[%clk 0:02:58.7]} 2. Nf3 {[%clk 0:03:01.5]}
2... Nc6 {[%clk 0:03:00.4]} 3. Bb5 {[%clk 0:03:02.8]} 3... g6 {[%clk 0:03:01.8]}
4. O-O {[%clk 0:02:57.5]} 4... Bg7 {[%clk 0:03:01.6]} 5. c3 {[%clk 0:02:58.5]}
5... d6 {[%clk 0:03:02.6]} 6. d4 {[%clk 0:02:58.4]} 6... Bd7 {[%clk 0:03:04.2]}
7. d5 {[%clk 0:02:51.6]} 7... Nce7 {[%clk 0:03:04.5]} 8. Bxd7+ {[%clk
0:02:52.3]} 8... Qxd7 {[%clk 0:03:06.4]} 9. Be3 {[%clk 0:02:51.6]} 9... h6
{[%clk 0:03:04]} 10. Nfd2 {[%clk 0:02:52.3]} 10... f5 {[%clk 0:03:04.9]} 11. f3
{[%clk 0:02:53.6]} 11... Nf6 {[%clk 0:03:05.8]} 12. c4 {[%clk 0:02:54.6]} 12...
O-O {[%clk 0:03:06.6]} 13. Nc3 {[%clk 0:02:55.3]} 13... Kh7 {[%clk 0:02:57.2]}
14. c5 {[%clk 0:02:55.8]} 14... fxe4 {[%clk 0:02:46.2]} 15. fxe4 {[%clk
0:02:56.6]} 15... Ng4 {[%clk 0:02:46.9]} 16. Qe2 {[%clk 0:02:57.7]} 16... Nxe3
{[%clk 0:02:47]} 17. Qxe3 {[%clk 0:02:59.6]} 17... h5 {[%clk 0:02:48.5]} 18.
Rxf8 {[%clk 0:02:35.7]} 18... Rxf8 {[%clk 0:02:42.6]} 19. cxd6 {[%clk
0:02:31.3]} 19... Bh6 {[%clk 0:02:43.3]} 20. Qxa7 {[%clk 0:01:45.6]} 20... Nc8
{[%clk 0:02:39.8]} 21. Qa5 {[%clk 0:00:46.3]} 21... Bxd2 {[%clk 0:02:19.5]} 22.
dxc7 {[%clk 0:00:47]} 22... Nd6 {[%clk 0:02:17.1]} 23. h3 {[%clk 0:00:46.5]}
23... Nxe4 {[%clk 0:02:10.1]} 24. Qb4 {[%clk 0:00:47.8]} 24... Nxc3 {[%clk
0:02:06]} 25. Qxf8 {[%clk 0:00:46.9]} 25... Be3+ {[%clk 0:01:50.2]} 26. Kh1
{[%clk 0:00:47.4]} 26... Qxc7 {[%clk 0:01:41.6]} 27. d6 {[%clk 0:00:48.8]} 27...
Qc5 {[%clk 0:01:28.7]} 28. Qf7+ {[%clk 0:00:47.5]} 28... Kh6 {[%clk 0:01:29.3]}
29. d7 {[%clk 0:00:47]} 29... Qd6 {[%clk 0:00:28]} 30. bxc3 {[%clk 0:00:47.4]}
30... e4 {[%clk 0:00:28.5]} 31. Qe8 {[%clk 0:00:41.4]} 31... Bb6 {[%clk
0:00:27.9]} 32. Rf1 {[%clk 0:00:40.8]} 1-0

[Event "*** MasterClass Titled Tuesday Blitz"]
[Site "Chess.com"]
[Date "2017.09.05"]
[Round "5"]
[White "tomsishere"]
[Black "Aygehovit1992"]
[Result "1-0"]
[WhiteElo "2300"]
[BlackElo "2448"]
[TimeControl "180+2"]
[EndTime "14:14:34 PDT"]
[Termination "tomsishere won by checkmate"]

1. d4 {[%clk 0:03:01.9]} 1... g6 {[%clk 0:03:00.5]} 2. c4 {[%clk 0:03:00.9]}
2... Bg7 {[%clk 0:03:01.5]} 3. e4 {[%clk 0:03:01.6]} 3... d6 {[%clk 0:03:02.6]}
4. Nc3 {[%clk 0:03:02]} 4... e5 {[%clk 0:03:03.4]} 5. Nge2 {[%clk 0:02:59.7]}
5... exd4 {[%clk 0:03:01.1]} 6. Nxd4 {[%clk 0:03:00.4]} 6... Nc6 {[%clk
0:03:02.7]} 7. Be3 {[%clk 0:03:01]} 7... Nge7 {[%clk 0:03:03.9]} 8. h4 {[%clk
0:03:01.3]} 8... h5 {[%clk 0:03:03.6]} 9. Qd2 {[%clk 0:02:56.9]} 9... O-O {[%clk
0:03:01.9]} 10. Be2 {[%clk 0:02:55.6]} 10... Be6 {[%clk 0:02:56.3]} 11. Nxe6
{[%clk 0:02:51.7]} 11... fxe6 {[%clk 0:02:55.7]} 12. g4 {[%clk 0:02:44.1]} 12...
Ne5 {[%clk 0:02:34.9]} 13. gxh5 {[%clk 0:02:42.4]} 13... gxh5 {[%clk 0:02:16.9]}
14. O-O-O {[%clk 0:02:37.3]} 14... Nf3 {[%clk 0:02:11]} 15. Bxf3 {[%clk
0:02:34.2]} 15... Rxf3 {[%clk 0:02:12.9]} 16. Rhg1 {[%clk 0:02:35]} 16... Rf7
{[%clk 0:00:31.1]} 17. Bh6 {[%clk 0:02:28.2]} 17... Kh7 {[%clk 0:00:10]} 18.
Bxg7 {[%clk 0:02:28.3]} 18... Rxg7 {[%clk 0:00:11.3]} 19. Rg5 {[%clk 0:02:25.2]}
19... Ng6 {[%clk 0:00:07.9]} 20. Rdg1 {[%clk 0:02:19]} 20... Qf6 {[%clk
0:00:08.6]} 21. Rxh5+ {[%clk 0:02:15.2]} 21... Kg8 {[%clk 0:00:09.3]} 22. Rhg5
{[%clk 0:02:15.5]} 22... Kf7 {[%clk 0:00:05.3]} 23. h5 {[%clk 0:02:14.8]} 23...
Rag8 {[%clk 0:00:06.1]} 24. hxg6+ {[%clk 0:02:15.2]} 24... Rxg6 {[%clk
0:00:07.7]} 25. Rxg6 {[%clk 0:02:16.1]} 25... Rxg6 {[%clk 0:00:09.6]} 26. Rxg6
{[%clk 0:02:16.8]} 26... Qxg6 {[%clk 0:00:11.2]} 27. Qf4+ {[%clk 0:02:16.4]}
27... Ke7 {[%clk 0:00:12.4]} 28. Kd2 {[%clk 0:02:15.8]} 28... a6 {[%clk
0:00:12.7]} 29. Qh4+ {[%clk 0:02:12.2]} 29... Kd7 {[%clk 0:00:13.5]} 30. Qg3
{[%clk 0:02:12.9]} 30... Qh6+ {[%clk 0:00:13.3]} 31. Qe3 {[%clk 0:02:13.3]}
31... Qh1 {[%clk 0:00:13.6]} 32. e5 {[%clk 0:02:12.8]} 32... Qa1 {[%clk
0:00:12.7]} 33. Kc2 {[%clk 0:02:13.5]} 33... Qf1 {[%clk 0:00:13.2]} 34. exd6
{[%clk 0:02:14.2]} 34... cxd6 {[%clk 0:00:14.3]} 35. Qd4 {[%clk 0:02:10.3]}
35... Kc6 {[%clk 0:00:04.9]} 36. Qe4+ {[%clk 0:02:10]} 36... Kc7 {[%clk
0:00:04.4]} 37. Qxe6 {[%clk 0:02:07.3]} 37... Qxf2+ {[%clk 0:00:05.5]} 38. Qe2
{[%clk 0:02:08]} 38... Qf5+ {[%clk 0:00:06.4]} 39. Kb3 {[%clk 0:02:07.2]} 39...
Qh3 {[%clk 0:00:06.3]} 40. Qe7+ {[%clk 0:02:06.3]} 40... Kc6 {[%clk 0:00:07.4]}
41. Qe4+ {[%clk 0:02:06.7]} 41... Kc7 {[%clk 0:00:08.4]} 42. Kc2 {[%clk
0:02:07.6]} 42... Qh2+ {[%clk 0:00:08.9]} 43. Qe2 {[%clk 0:02:07.5]} 43... Qh7+
{[%clk 0:00:09.7]} 44. Kb3 {[%clk 0:02:07.9]} 44... Qh3 {[%clk 0:00:10.4]} 45.
Qd2 {[%clk 0:02:06]} 45... b6 {[%clk 0:00:05.7]} 46. Qd5 {[%clk 0:02:06.2]}
46... a5 {[%clk 0:00:03.8]} 47. Ka4 {[%clk 0:02:02.5]} 47... Qd7+ {[%clk
0:00:03.4]} 48. Nb5+ {[%clk 0:02:03.3]} 48... Kc8 {[%clk 0:00:04.4]} 49. Qa8#
{[%clk 0:02:03.1]} 1-0